bitfinex/quotes_ETHUSD_20220215
["timestamp","ask_amount","ask_price","bid_price","bid_amount"]
[1644885107552,0.85501,2925.4,2924.7,0.03812926]
[1644885107553,1.05,2925.2,2924.7,0.03812926]
[1644885107752,0.49,2925.1,2924.9,0.03152928]
[1644885107954,0.95794176,2925.0,2924.9,0.03152928]
[1644885108152,2.36384176,2925.0,2924.9,0.03152928]
[1644885108351,2.66384176,2925.0,2924.9,0.03152928]
[1644885108752,2.90684176,2925.0,2924.9,0.03152928]
[1644885109453,1.74198316,2924.8,2923.5,7.49349878]
[1644885109653,3.53209918,2924.7,2923.5,7.49349878]
[1644885109853,0.85525,2924.6,2923.5,7.49349878]
[1644885110152,4.29344934,2924.5,2923.5,7.49349878]
[1644885110351,5.08344934,2924.5,2923.7,1.18104535]
[1644885110554,3.40303974,2924.4,2923.7,1.18104535]
[1644885110961,3.40303974,2924.4,2923.5,7.49349878]
[1644885111400,4.25831974,2924.4,2923.5,7.49349878]
[1644885111599,0.85528,2924.4,2923.5,7.49349878]
[1644885111794,5.84528,2924.4,2924.2,0.00595525]
[1644885111996,1.17964975,2924.3,2924.2,0.00595525]
[1644885112194,1.17964975,2924.3,2923.8,0.02382458]
[1644885112195,4.80553,2924.2,2923.8,0.02382458]
[1644885112392,1.49,2924.1,2923.8,0.02382458]
[1644885112592,0.49,2924.0,2923.5,0.01349878]
[1644885112992,0.79,2924.0,2923.5,0.01349878]
[1644885113593,1.64547,2924.0,2923.5,0.01349878]
[1644885115747,5.08644222,2924.0,2923.5,0.01349878]
[1644885116547,1.64547,2924.0,2923.8,0.0095434]
[1644885116952,5.1249576,2924.0,2923.8,0.0095434]
[1644885117550,5.1249576,2924.0,2923.5,0.01349878]
[1644885117750,5.1249576,2924.0,2923.8,0.0095434]
[1644885117951,2.41267,2924.0,2923.8,0.0095434]
[1644885118150,3.96717,2924.0,2923.8,0.0095434]
[1644885118352,4.81986686,2924.0,2923.8,0.0095434]
[1644885118801,4.81986686,2924.0,2923.5,0.01349878]
[1644885118999,2.66717,2924.0,2923.8,0.0095434]
[1644885119200,2.42087,2924.0,2923.8,0.0095434]
[1644885119399,1.34547,2924.0,2923.8,0.0095434]
[1644885119799,1.34547,2924.0,2923.5,0.01349878]
[1644885119800,2.17857,2924.0,2923.5,0.01349878]
[1644885120000,3.08596454,2924.0,2923.5,0.01349878]
[1644885120202,7.14644141,2924.0,2923.8,0.0095434]
[1644885120403,7.14644141,2924.0,2923.4,0.02480325]
[1644885120404,0.85544,2923.8,2923.4,0.02480325]
[1644885120604,0.85544,2923.6,2923.4,0.02480325]
[1644885120803,3.71315282,2923.5,2923.4,0.02480325]
[1644885121002,1.43114,2923.6,2923.4,0.02480325]
[1644885121204,1.43114,2923.6,2923.3,0.01508282]
[1644885121502,0.85546,2923.5,2923.3,0.01508282]
[1644885121707,1.710907,2923.5,2923.3,0.01508282]
[1644885121906,0.85548,2923.5,2923.3,0.01508282]
[1644885124046,0.00362456,2923.7,2923.3,0.01508282]
[1644885124448,0.00362456,2923.7,2923.3,0.01979608]
[1644885124644,2.3768,2924.6,2923.3,0.01979608]
[1644885125044,0.00950659,2923.7,2923.6,0.89804865]
[1644885125245,0.00950659,2923.7,2923.3,1.18329074]
[1644885125444,0.00950659,2923.7,2923.3,0.02928043]
[1644885125645,0.00950659,2923.7,2923.3,0.02459074]
[1644885125846,0.85532,2923.9,2923.3,0.02459074]
[1644885125847,1.15532,2923.9,2923.3,0.01508282]
[1644885126045,1.1553406,2923.9,2923.3,0.01508282]
[1644885126294,0.00950659,2923.7,2923.4,1.07217158]
[1644885126495,0.00950659,2923.7,2923.5,0.00468969]
[1644885127097,0.00950659,2923.7,2923.3,0.02459074]
[1644885127098,0.85549,2923.6,2923.3,0.01508282]
[1644885127298,1.71096,2923.6,2923.3,0.01508282]
[1644885127503,1.71096,2923.6,2923.3,0.02459087]
[1644885128399,1.71096,2923.6,2923.3,0.01508282]
[1644885128601,1.71096,2923.6,2923.1,0.04666287]
[1644885129002,0.00950652,2923.7,2923.1,0.04666287]
[1644885129605,0.3,2923.7,2923.1,0.04666287]
[1644885129805,0.171,2924.3,2923.0,1.0296013]
[1644885130051,3.671,2924.6,2923.8,0.92346802]
[1644885130245,3.671,2924.6,2923.1,1.7278]
[1644885130246,0.85517,2924.4,2923.1,1.7278]
[1644885130451,3.5,2924.3,2923.1,1.2378]
[1644885130645,1.3679,2924.7,2923.1,1.2378]
[1644885130646,1.7107523,2924.1,2923.1,1.2378]
[1644885131247,0.3,2924.0,2923.5,0.90470064]
[1644885131647,0.85535,2923.8,2923.5,0.90470064]
[1644885131846,0.85535,2923.8,2923.1,1.2378]
[1644885132053,0.85535,2923.8,2922.9,0.03552865]
[1644885132054,1.15535,2923.8,2922.9,0.03552865]
[1644885132245,0.3,2923.8,2922.9,0.03552865]
[1644885132545,3.66202365,2924.0,2922.9,0.03552865]
[1644885132752,0.85534,2923.6,2922.9,0.03552865]
[1644885132948,1.15534,2923.6,2923.0,1.18816214]
[1644885133550,0.00950682,2923.5,2923.1,0.0095081]
[1644885133799,2.78367682,2923.5,2923.1,0.0095081]
[1644885134398,2.77417,2923.5,2922.9,0.03552865]
[1644885134601,2.78367689,2923.5,2923.2,0.009508]
[1644885135404,4.2702156,2923.4,2923.2,0.009508]
[1644885135599,3.30683274,2923.3,2922.9,0.03552865]
[1644885135801,3.30683274,2923.3,2923.2,0.00950806]
[1644885136100,1.39966,2923.4,2923.2,0.00950806]
[1644885136700,1.39966,2923.4,2922.9,0.03552865]
[1644885136901,1.15546,2923.4,2923.2,0.009508]
[1644885137643,0.85543,2923.3,2923.2,0.009508]
[1644885137841,1.15543,2923.3,2922.9,0.03552865]
[1644885138148,0.3,2923.2,2923.1,0.00950246]
[1644885139142,0.3,2923.2,2922.9,0.03552865]
[1644885139343,0.3,2923.2,2923.0,0.00950266]
[1644885139344,2.0109598,2923.2,2923.0,0.00950266]
[1644885140348,0.8555041,2923.1,2922.9,0.03552865]
[1644885140548,0.8555041,2923.1,2923.0,0.00950276]
[1644885141605,0.8555041,2923.1,2922.9,0.03552865]
[1644885141805,1.7109169,2923.2,2922.9,0.0414106]
[1644885142704,0.3,2923.1,2922.9,0.03552865]
[1644885143106,0.3,2923.1,2922.9,0.0414106]
[1644885143907,0.3,2923.1,2922.9,0.03552865]
[1644885144107,0.3,2923.1,2922.9,0.0414107]
[1644885144309,1.1554631,2923.1,2922.9,0.0414107]
[1644885145147,1.1554631,2923.1,2922.9,0.03552865]
[1644885145345,1.1554631,2923.1,2922.9,0.04504289]
[1644885145750,0.3,2923.1,2922.9,0.04504289]
[1644885146147,0.30951215,2923.5,2922.9,0.04504289]
[1644885146349,0.3,2923.7,2922.9,0.03552865]
[1644885146548,1.6301,2923.9,2922.9,0.04504289]
[1644885146549,0.00951215,2923.5,2922.9,0.04504289]
[1644885146850,0.8553778,2923.4,2922.9,0.04504289]
[1644885147149,2.0108078,2923.4,2922.9,0.04504289]
[1644885147550,0.8554,2923.3,2922.9,0.03552865]
[1644885147750,0.8554257,2923.2,2923.0,0.00951394]
[1644885147951,1.1554257,2923.2,2923.0,0.00951394]
[1644885148798,1.1554214,2923.2,2922.9,0.03552865]
[1644885149005,1.1554214,2923.2,2923.0,0.00951404]
[1644885149299,1.1054214,2923.2,2922.6,2.00566414]
[1644885149499,0.25,2923.2,2923.1,1.09580062]
[1644885149699,0.00951228,2923.5,2923.1,1.09580062]
[1644885149900,0.8552864,2923.8,2923.1,1.09580062]
[1644885150101,0.171,2923.9,2923.1,1.09580062]
[1644885150304,3.112,2924.1,2923.1,1.09580062]
[1644885150305,1.44398196,2923.8,2923.1,1.09580062]
[1644885150501,3.112,2924.1,2923.1,1.09580062]
[1644885150702,3.112,2924.1,2923.1,1.95105062]
[1644885150703,0.85523,2923.9,2923.1,1.95105062]
[1644885150901,0.85523,2923.9,2923.1,1.09580062]
[1644885150902,2.29930412,2923.8,2923.1,1.09580062]
[1644885151106,1.44405982,2923.7,2923.1,1.09580062]
[1644885151299,1.44405982,2923.6,2923.1,1.09580062]
[1644885151702,0.3,2923.7,2923.1,1.09580062]
[1644885152102,3.112,2924.1,2923.1,1.09580062]
[1644885152103,0.8552495,2923.8,2923.1,1.09580062]
[1644885152300,1.44424345,2923.7,2923.1,1.09580062]
[1644885152544,3.412,2924.1,2923.1,1.09580062]
[1644885152750,4.01015518,2924.0,2923.1,1.09580062]
[1644885152948,0.85524,2923.6,2923.1,1.95105062]
[1644885153146,2.0105189,2923.6,2923.1,1.95105062]
[1644885153345,1.1552789,2923.6,2923.1,1.09580062]
[1644885153545,1.44728921,2923.5,2923.1,1.09580062]
[1644885153749,1.44728921,2923.5,2923.2,0.00097764]
[1644885153944,1.45627435,2923.5,2923.2,0.00097764]
[1644885154147,0.86429664,2923.5,2923.2,0.00097764]
[1644885154848,0.8553115,2923.5,2923.2,0.00097764]
[1644885155046,0.86429664,2923.5,2923.2,0.00097764]
[1644885155248,0.85535,2923.4,2923.2,0.00097764]
[1644885155448,1.7107209,2923.4,2923.2,0.00097764]
[1644885155647,0.3,2923.4,2923.2,0.00097764]
[1644885156049,0.00898514,2923.5,2923.2,0.00097764]
[1644885156050,0.3,2923.5,2923.2,0.00097764]
[1644885156304,2.31277061,2923.4,2923.2,0.93700475]
[1644885156501,1.71954943,2923.4,2923.2,0.93700475]
[1644885156702,2.01954943,2923.4,2923.2,0.93700475]
[1644885157203,2.0105642,2923.4,2923.2,0.00097764]
[1644885157403,2.01954943,2923.4,2923.2,0.00097764]
[1644885158004,1.44840169,2923.3,2923.2,0.00097764]
[1644885160246,0.85554,2923.0,2922.9,0.00889981]
[1644885160646,2.60394169,2923.0,2922.9,0.00889981]
[1644885160844,2.60394169,2923.0,2922.6,0.01677467]
[1644885160845,1.74840169,2923.0,2922.6,0.01677467]
[1644885161045,1.44840169,2922.9,2922.8,0.00889959]
[1644885161243,1.15654463,2923.1,2922.8,0.00889959]
[1644885161548,1.7111137,2923.0,2922.8,0.00889959]
[1644885162042,1.7111137,2923.0,2922.6,0.01677467]
[1644885162043,0.85555,2922.9,2922.6,0.01677467]
[1644885162243,1.15555,2922.9,2922.8,0.00890557]
[1644885162647,3.09705427,2922.9,2922.8,0.00890557]
[1644885163243,3.4231381,2922.8,2922.6,0.01677467]
[1644885163446,1.45150427,2922.7,2922.6,0.01677467]
[1644885163645,1.75150427,2922.7,2922.6,0.01677467]
[1644885164502,2.60727427,2922.7,2922.6,0.01677467]
[1644885166103,1.15577,2922.7,2922.6,0.01677467]
[1644885166505,3.09755297,2922.7,2922.6,0.01677467]
[1644885166911,3.09755297,2922.7,2922.0,3.29916576]
[1644885166912,5.9120061,2922.6,2922.0,3.29916576]
[1644885167207,0.85604,2922.4,2922.3,0.01476196]
[1644885167404,3.26882297,2922.4,2922.3,0.01476196]
[1644885167648,4.26882297,2922.4,2922.3,0.01476196]
[1644885167847,4.09782297,2922.4,2922.3,0.01476196]
[1644885171399,7.66715712,2922.4,2922.3,0.01476196]
[1644885171600,4.09782297,2922.4,2922.3,0.01476196]
[1644885171801,4.61880779,2922.4,2922.3,0.01476196]
[1644885172001,4.61880779,2922.4,2922.0,0.45472891]
[1644885172002,5.9121801,2922.3,2922.0,0.45472891]
[1644885172201,0.49,2922.2,2922.0,0.45472891]
[1644885172398,2.85245581,2922.2,2922.0,0.45472891]
[1644885173399,3.70856581,2922.2,2922.0,0.45472891]
[1644885173598,2.64611,2922.2,2922.0,0.45472891]
[1644885174405,2.64611,2922.2,2922.0,0.35472891]
[1644885174598,5.21409,2922.2,2922.0,0.35472891]
[1644885175647,3.64908784,2922.1,2922.0,0.35472891]
[1644885175847,5.13908784,2922.1,2922.0,0.35472891]
[1644885176248,4.86392845,2922.1,2922.0,0.35472891]
[1644885177649,1.49,2922.1,2922.0,0.35472891]
[1644885177851,4.90850348,2922.1,2922.0,0.35472891]
[1644885178453,4.86207602,2922.1,2922.0,0.35472891]
[1644885179097,4.86207602,2922.1,2921.8,0.0095037]
[1644885179098,5.71812602,2922.1,2921.9,0.00952745]
[1644885179296,2.15614,2922.0,2921.9,0.00952745]
[1644885179496,2.64614,2922.0,2921.9,0.00952745]
[1644885179700,2.64614,2922.0,2921.8,0.0095037]
[1644885179701,4.2,2921.9,2921.8,0.0095037]
[1644885179894,5.69,2921.9,2921.8,0.0095037]
[1644885180095,6.7892079,2921.9,2921.8,0.0095037]
[1644885180495,2.5892079,2921.9,2921.8,0.0095037]
[1644885181294,6.0813092,2921.9,2921.8,0.0095037]
[1644885181695,6.0813092,2921.9,2921.7,0.00586013]
[1644885181696,4.65624,2921.8,2921.7,0.00586013]
[1644885181895,8.7149694,2921.8,2921.7,0.00586013]
[1644885182094,9.0149694,2921.8,2921.7,0.00586013]
[1644885182299,9.0149694,2921.8,2921.6,0.0060352]
[1644885182957,9.8711894,2921.8,2921.6,0.0060352]
[1644885183351,10.7274313,2921.8,2921.6,0.0060352]
[1644885185052,14.07063939,2921.8,2921.6,0.0060352]
[1644885185251,10.7274313,2921.8,2921.6,0.0060352]
[1644885185752,3.30583097,2921.7,2921.1,0.02959968]
[1644885186052,3.30583097,2921.7,2921.6,0.0120704]
[1644885186053,5.87475097,2921.7,2921.6,0.0120704]
[1644885186297,3.0,2921.6,2921.4,0.02651364]
[1644885186498,3.89892621,2921.5,2921.4,0.02651364]
[1644885186898,6.76786621,2921.5,2921.4,0.02651364]
[1644885187299,6.76786621,2921.5,2921.4,0.0169925]
[1644885187698,6.76786621,2921.5,2921.1,0.01201352]
[1644885187699,2.5687962,2921.4,2921.1,0.01201352]
[1644885187899,0.49,2921.3,2921.1,0.01201352]
[1644885188100,0.79,2921.3,2921.1,0.01201352]
[1644885188701,3.3587917,2921.3,2921.1,0.01201352]
[1644885188901,3.3587917,2921.3,2921.0,9.93651472]
[1644885189101,1.71237,2921.2,2921.0,9.93651472]
[1644885189704,2.71793755,2921.2,2921.0,9.93651472]
[1644885189902,5.1373283,2921.2,2921.0,9.93651472]
[1644885190345,0.3,2921.1,2921.0,9.93651472]
[1644885191147,0.79,2921.1,2921.0,9.93651472]
[1644885191346,1.66333942,2921.1,2921.0,9.93651472]
[1644885191747,0.79,2921.1,2921.0,9.93651472]
[1644885192347,4.12562618,2921.1,2921.0,9.93651472]
[1644885192547,0.79,2921.1,2921.0,9.93651472]
[1644885193247,5.13667383,2921.1,2921.0,9.93651472]
[1644885193647,1.63954645,2921.1,2921.0,9.93651472]
[1644885194699,5.08017041,2921.1,2921.0,9.93651472]
[1644885195505,0.79,2921.1,2921.0,9.93651472]
[1644885195702,1.15618,2921.1,2921.0,9.93651472]
[1644885196503,3.04573544,2921.1,2921.0,1.32533011]
[1644885196705,3.04573544,2921.1,2920.4,0.03809483]
[1644885196706,2.32292249,2921.0,2920.4,0.03809483]
[1644885196901,2.32292249,2921.0,2919.9,0.00190494]
[1644885196902,0.85652,2920.8,2919.9,0.00190494]
[1644885197105,0.0292,2920.7,2919.9,0.00190494]
[1644885197306,6.125,2920.2,2919.5,0.03018346]
[1644885197567,5.0,2919.6,2918.3,0.010273]
[1644885197763,5.0,2919.6,2917.8,9.584]
[1644885197764,5.0,2919.3,2917.8,9.584]
[1644885198069,5.0,2919.3,2918.4,0.05115811]
[1644885198070,2.57116,2919.2,2918.4,0.05115811]
[1644885198262,6.125,2919.1,2918.4,0.05115811]
[1644885198465,0.49,2919.0,2918.3,0.05172654]
[1644885198663,0.49,2919.0,2918.5,1.16204751]
[1644885198872,3.06108,2919.0,2918.6,0.00451277]
[1644885199065,1.34673,2919.0,2918.6,0.05453404]
[1644885199263,1.34673,2919.0,2918.7,0.04945284]
[1644885199264,0.49,2919.0,2918.7,0.04945284]
[1644885199467,4.5271,2919.6,2918.7,0.04945284]
[1644885199671,0.49,2919.4,2918.7,0.05894298]
[1644885199868,0.79,2919.4,2918.7,0.05894298]
[1644885200064,0.8567403,2919.2,2919.0,1.1842721]
[1644885200267,0.85667,2919.2,2919.0,1.1842721]
[1644885200467,3.4258,2919.8,2919.1,0.04717915]
[1644885200468,0.1711,2919.8,2919.1,0.04717915]
[1644885200675,2.45293,2920.1,2919.0,1.13596402]
[1644885200867,3.5,2920.0,2919.1,0.00448943]
[1644885201065,0.49,2919.9,2919.1,0.00448943]
[1644885201304,1.34662,2919.8,2919.1,0.00448943]
[1644885201502,0.49,2919.7,2919.1,0.00448943]
[1644885201703,0.49,2919.7,2918.0,0.35432476]
[1644885201704,7.8,2919.6,2918.0,0.35432476]
[1644885201917,35.78825371,2919.5,2919.3,0.00948885]
[1644885202104,35.78825371,2919.5,2917.8,0.19685054]
[1644885202105,6.125,2918.5,2917.9,0.00442335]
[1644885202305,6.125,2918.0,2917.9,0.00442335]
[1644885202502,6.615,2918.0,2917.9,0.00442335]
[1644885202703,6.615,2918.0,2917.8,0.18481163]
[1644885202905,6.125,2917.9,2917.8,0.04680925]
[1644885203105,6.615,2917.9,2917.8,0.04240666]
[1644885203408,0.3,2918.0,2917.8,0.04240666]
[1644885203603,1.15735,2918.0,2917.8,0.04240666]
[1644885204012,6.615,2917.9,2917.8,0.04240666]
[1644885204205,10.18633152,2917.9,2917.8,0.04240666]
[1644885204404,7.19114021,2918.0,2917.8,0.05189858]
[1644885204605,3.7295663,2918.0,2917.8,0.05189858]
[1644885204806,0.85717,2918.1,2917.8,0.05189858]
[1644885205060,6.125,2917.9,2917.8,0.05189858]
[1644885205246,6.615,2917.9,2917.8,0.04240666]
[1644885205646,6.615,2917.9,2917.8,0.05189848]
[1644885206247,7.77214,2917.9,2917.8,0.05189848]
[1644885206448,7.77214,2917.9,2917.8,0.04240666]
[1644885207149,7.77214,2917.9,2917.8,3.54240666]
[1644885207551,7.77214,2917.9,2917.8,3.54680925]
[1644885208657,7.47214,2917.9,2917.8,3.54680925]
[1644885208916,0.1713,2918.5,2917.8,3.54680925]
[1644885208917,0.49,2918.5,2917.8,3.54680925]
[1644885209313,3.50948765,2919.0,2917.8,3.54680925]
[1644885209515,0.00948765,2919.0,2917.8,3.54680925]
[1644885209713,0.00948765,2919.0,2918.2,0.9600303]
[1644885209919,0.86628765,2919.0,2918.3,0.00440259]
[1644885210118,0.25,2919.2,2918.3,3.50440259]
[1644885210318,1.6442,2919.7,2918.3,3.50440259]
[1644885210615,1.3818,2919.8,2918.3,3.50440259]
[1644885210616,0.00948861,2919.0,2918.5,0.00949053]
[1644885211015,0.00948861,2919.0,2918.9,0.88284646]
[1644885211416,1.02786,2919.8,2918.9,0.88284646]
[1644885211616,0.00948889,2919.1,2919.0,3.4479665]
[1644885211816,0.00948889,2919.1,2919.0,3.45236909]
[1644885212551,0.1711,2919.9,2919.0,3.45336909]
[1644885212763,0.1711,2920.2,2919.6,0.96945146]
[1644885212953,10.85076,2920.7,2919.6,0.96945146]
[1644885212954,0.30929997,2920.6,2919.7,3.36819182]
[1644885213151,0.30929997,2920.6,2919.8,0.00540259]
[1644885213152,0.85638,2920.6,2919.8,0.00540259]
[1644885213354,0.1711,2920.8,2919.8,0.00540259]
[1644885213757,0.1711,2920.9,2919.8,0.00540259]
[1644885213954,0.1711,2920.9,2920.1,0.8848933]
[1644885214153,0.00916614,2920.4,2920.2,0.00440259]
[1644885214953,0.1711,2921.0,2920.2,0.00440259]
[1644885215156,0.85621,2921.1,2919.8,0.00440259]
[1644885215355,0.00913754,2920.4,2919.5,0.00540259]
[1644885215554,0.85644,2920.2,2919.5,0.00540259]
[1644885215755,1.15644,2920.2,2919.5,0.00540259]
[1644885215956,1.15644,2920.2,2919.1,0.00540259]
[1644885216303,1.15644,2920.2,2919.8,0.87719699]
[1644885216304,0.3,2920.2,2919.8,0.87719699]
[1644885216499,0.00883314,2920.0,2919.9,0.00440259]
[1644885217500,1.96246,2921.0,2919.8,0.8705954]
[1644885217797,1.96246,2921.0,2919.9,3.32155737]
[1644885217798,2.01246,2921.0,2919.9,3.32155737]
[1644885217996,2.01246,2921.0,2919.7,3.55642452]
[1644885218197,1.71246,2921.0,2919.8,0.001]
[1644885218399,1.71246,2921.0,2919.8,0.00537682]
[1644885218597,0.8562,2921.0,2919.8,0.00537682]
[1644885219002,0.00886077,2920.5,2920.3,0.99184406]
[1644885219797,0.8562,2921.0,2920.3,0.99184406]
[1644885220050,0.8561943,2921.1,2919.9,3.28940568]
[1644885220051,0.00888232,2920.5,2919.9,3.28940568]
[1644885220249,0.00888232,2920.5,2919.9,0.001]
[1644885221051,1.15625,2920.8,2919.9,0.001]
[1644885221052,0.3,2920.8,2919.9,0.99941144]
[1644885221254,0.3,2920.8,2919.9,0.001]
[1644885221255,0.00888267,2920.3,2919.9,0.001]
[1644885221452,0.86529447,2920.3,2919.9,0.001]
[1644885221756,1.16529447,2920.3,2919.9,0.001]
[1644885222150,1.1564118,2920.3,2919.9,0.001]
[1644885222651,0.00888285,2920.2,2919.9,0.001]
[1644885223453,2.0128418,2920.3,2919.9,0.001]
[1644885223652,0.8653005,2920.2,2919.9,0.001]
[1644885224700,0.85642,2920.2,2919.9,0.001]
[1644885224997,0.8653005,2920.2,2919.9,0.001]
[1644885225200,0.0088805,2920.2,2919.9,0.001]
[1644885225799,0.3,2920.3,2919.9,0.001]
[1644885226006,0.0088805,2920.2,2919.9,0.001]
[1644885227100,2.012814,2920.3,2919.9,0.001]
[1644885227302,0.86530068,2920.2,2919.9,0.001]
[1644885228150,0.85642,2920.2,2919.9,0.001]
[1644885228650,0.86530068,2920.2,2919.9,0.001]
[1644885229454,0.85642,2920.2,2919.9,0.001]
[1644885229652,0.86530068,2920.2,2919.9,0.001]
[1644885230653,0.85642,2920.2,2919.9,0.001]
[1644885230858,0.86530066,2920.2,2919.9,0.001]
[1644885231899,0.85642,2920.2,2919.9,0.001]
[1644885232103,1.45345835,2920.1,2919.9,0.001]
[1644885232301,3.46628265,2920.1,2919.9,0.001]
[1644885232498,2.0128243,2920.1,2919.9,0.001]
[1644885232998,2.0128243,2920.1,2919.9,0.00537742]
[1644885233498,2.87815505,2920.1,2919.9,0.00537742]
[1644885233702,1.16529075,2920.1,2919.9,0.00537742]
[1644885233899,0.30888075,2920.1,2919.9,0.00537742]
[1644885234297,0.3,2920.1,2919.9,0.00537742]
[1644885234498,0.00888074,2920.1,2919.9,0.00537742]
[1644885234706,1.45352851,2920.0,2919.9,0.00537742]
[1644885234902,5.06639258,2920.0,2919.9,0.00537742]
[1644885235154,1.75352851,2920.0,2919.9,0.00537742]
[1644885235353,5.19945715,2920.0,2919.9,0.00537742]
[1644885235552,1.75352851,2920.0,2919.9,0.00537742]
[1644885235755,3.46658851,2920.0,2919.9,0.00537742]
[1644885236552,6.86975752,2920.0,2919.9,0.00537742]
[1644885237551,6.86975752,2920.0,2919.8,3.5]
[1644885237552,0.8566033,2919.9,2919.8,1.95489434]
[1644885237752,6.0734268,2919.9,2919.8,1.95489434]
[1644885238794,2.61013181,2919.9,2919.8,1.95489434]
[1644885239003,2.61013181,2919.9,2919.8,1.95925002]
[1644885239802,4.29174762,2920.0,2919.8,1.95925002]
[1644885239803,0.00888102,2920.0,2919.8,1.95925002]
[1644885240002,0.00888102,2920.0,2919.8,1.95489434]
[1644885240395,2.56964,2920.6,2919.8,1.95489434]
[1644885240597,2.56964,2920.6,2919.9,4.1307445]
[1644885240598,0.00888093,2920.0,2919.9,4.1307445]
[1644885240798,0.00888093,2920.0,2919.8,1.95489434]
[1644885241402,1.7128053,2920.5,2919.8,1.95489434]
[1644885241599,1.45340483,2920.4,2919.8,1.95489434]
[1644885241799,0.00372145,2920.0,2919.8,1.95489434]
[1644885242655,1.45340483,2920.3,2919.8,1.95489434]
[1644885242848,1.45340483,2920.3,2919.9,0.001]
[1644885243048,0.00372145,2920.0,2919.9,0.001]
[1644885243248,1.45712628,2920.0,2919.9,0.001]
[1644885243748,2.31358628,2920.0,2919.9,0.001]
[1644885243948,2.30986483,2920.0,2919.9,0.001]
[1644885244350,2.60986483,2920.0,2919.9,0.001]
[1644885244753,1.45340483,2920.0,2919.9,0.001]
[1644885245255,1.45340483,2920.1,2919.9,0.001]
[1644885245451,1.45340483,2920.0,2919.9,0.001]
[1644885246053,0.00948011,2920.1,2919.9,0.001]
[1644885246299,0.85636,2920.4,2919.9,0.001]
[1644885246500,1.45321261,2920.3,2919.9,0.001]
[1644885246704,0.00948011,2920.1,2919.9,0.001]
[1644885246900,1.45321261,2920.0,2919.9,0.001]
[1644885247906,0.85636,2920.4,2919.9,0.001]
[1644885247907,0.00948011,2920.1,2919.9,0.001]
[1644885248104,1.45324432,2920.0,2919.9,0.001]
[1644885248804,0.85635,2920.2,2919.9,0.001]
[1644885249008,1.712746,2920.7,2919.9,3.25495927]
[1644885249009,0.00948011,2920.1,2919.9,3.25495927]
[1644885249405,0.00948011,2920.1,2919.9,0.001]
[1644885250055,0.85631,2920.4,2919.9,0.001]
[1644885250254,0.00948001,2920.1,2919.9,0.001]
[1644885251054,0.85627,2920.5,2919.9,0.001]
[1644885251256,1.45313301,2920.4,2920.0,0.97553077]
[1644885251453,2.21255,2920.8,2920.0,0.97553077]
[1644885251454,0.00948001,2920.1,2920.0,0.97553077]
[1644885252053,1.46259179,2920.1,2920.0,0.97553077]
[1644885252257,0.5,2920.8,2920.0,0.97553077]
[1644885252455,0.5,2920.8,2919.9,0.85725]
[1644885252456,0.00947991,2920.2,2919.9,0.85725]
[1644885252655,0.00947991,2920.2,2919.9,0.001]
[1644885252855,1.45311185,2920.1,2919.9,0.001]
[1644885253656,1.45311185,2920.0,2919.9,0.001]
[1644885253903,1.45311185,2920.0,2919.9,0.84096975]
[1644885255105,8.011e-05,2920.1,2919.9,4.34096975]
[1644885255307,8.011e-05,2920.1,2920.0,8.5]
[1644885255510,8.011e-05,2920.1,2920.0,29.96]
[1644885255711,8.011e-05,2920.1,2920.0,30.25249847]
[1644885256005,0.5,2920.7,2920.0,26.75249847]
[1644885256205,0.5,2920.7,2920.5,5.87756867]
[1644885256405,0.5,2920.7,2920.5,7.58948837]
[1644885257006,0.5,2920.7,2920.5,8.44543837]
[1644885257648,0.85593,2921.9,2920.7,0.85591]
[1644885257649,0.64645096,2921.6,2920.7,0.85591]
[1644885257854,0.64645096,2921.6,2920.8,3.2355568]
[1644885258049,1.50245096,2921.6,2920.6,1.71182]
[1644885258253,1.80245096,2921.6,2920.6,1.71182]
[1644885258449,0.64645096,2921.4,2920.6,1.71182]
[1644885258650,0.00947191,2921.3,2920.6,0.16217635]
[1644885259249,0.00947191,2921.3,2921.1,1.15056669]
[1644885259449,0.64645096,2921.5,2921.1,1.15056669]
[1644885259650,0.85589441,2921.7,2921.1,1.15056669]
[1644885259651,0.64645096,2921.6,2921.1,1.15056669]
[1644885260252,1.50240096,2921.7,2921.1,1.15056669]
[1644885260857,0.00947152,2921.5,2921.1,1.15056669]
[1644885261051,0.86548152,2921.5,2921.1,1.15056669]
[1644885261513,1.51193248,2921.5,2921.1,1.15056669]
[1644885261915,0.85601,2921.5,2921.1,1.15056669]
[1644885262116,0.86552171,2921.4,2920.6,0.85604]
[1644885262317,0.00947171,2921.4,2920.5,0.85602]
[1644885263016,0.64645096,2921.6,2920.5,0.85602]
[1644885263017,1.50241096,2921.6,2920.5,0.85602]
[1644885263217,0.64645096,2921.6,2920.7,0.85601]
[1644885263421,0.0094724,2921.1,2920.8,5.8559]
[1644885263618,0.0094724,2921.1,2921.0,5.0]
[1644885263819,7.24e-05,2921.1,2921.0,7.3645]
[1644885264019,7.24e-05,2921.1,2921.0,28.41054644]
[1644885264418,0.1711,2922.6,2921.2,1.0931251]
[1644885264419,0.64645096,2922.5,2921.2,1.0931251]
[1644885264619,0.1711,2922.6,2921.9,5.0]
[1644885264620,0.64645096,2922.6,2921.9,5.0]
[1644885264817,0.64645096,2922.6,2921.9,7.41146]
[1644885265062,0.64645096,2922.5,2922.1,1.16687701]
[1644885265259,3.38909253,2922.9,2922.1,1.16687701]
[1644885265260,0.64645096,2922.4,2922.1,1.16687701]
[1644885265459,0.85589441,2922.7,2922.1,1.16687701]
[1644885265460,0.64645096,2922.5,2922.1,1.16687701]
[1644885265663,0.64645096,2922.6,2922.1,1.16687701]
[1644885266360,1.50207096,2922.7,2922.1,1.16687701]
[1644885266562,1.50207096,2922.7,2921.8,1.71127]
[1644885266966,0.00915001,2922.5,2921.8,1.71127]
[1644885267762,0.00915001,2922.5,2922.1,1.02775356]
[1644885267962,0.85565,2922.6,2922.1,1.02775356]
[1644885268363,3.23822441,2923.0,2922.1,1.02775356]
[1644885268364,0.00915048,2922.3,2922.1,1.02775356]
[1644885269205,0.85567,2922.5,2922.1,1.02775356]
[1644885269406,0.00884461,2922.3,2922.1,1.02775356]
[1644885270306,0.85567,2922.5,2921.8,0.85563]
[1644885270507,0.00884461,2922.3,2921.8,0.85563]
[1644885270706,0.00884461,2922.3,2921.6,3.42235]
[1644885271111,0.00884461,2922.3,2921.7,0.85567]
[1644885271509,0.00884461,2922.3,2921.5,0.8556714]